[Event "PanAm Intercolleagiate-ch 2019"]
[Site "Charlotte"]
[Date "2019.12.30"]
[Round "6.5"]
[White "Swiercz, Dariusz"]
[Black "Bruzon Batista, Lazaro"]
[Result "1/2-1/2"]
[ECO "E35"]
[WhiteElo "2659"]
[BlackElo "2640"]
[Annotator "ChessBase"]
[PlyCount "154"]
[EventDate "2019.12.27"]
[EventType "team-tourn"]
[EventCountry "USA"]
[SourceTitle "playchess.com"]
[Source "ChessBase"]
[SourceQuality "1"]
[TimeControl "5400+30"]

1. d4 {[%emt 1:30:30]} Nf6 {[%emt 1:30:30]} 2. c4 {[%emt 0:00:30]} e6 {[%emt 0:00:30]} 3. Nc3 {[%emt 0:00:30]} Bb4 {[%emt 0:00:30]} 4. Qc2 {[%emt 0:00:30]} d5 {[%emt 0:00:30]} 5. cxd5 {[%emt 0:00:30]} exd5 {[%emt 0:00:30]} 6. Bg5 {[%emt 0:00:30]} h6 {[%emt 0:00:30]} 7. Bh4 {[%emt 0:00:30]} O-O {[%emt 0:00:30]} 8. e3 {[%emt 0:00:30]} c5 {[%emt 0:00:30]} 9. dxc5 {[%emt 0:00:30]} Be6 {[%emt 0:00:30]} 10. a3 {[%emt 0:00:30]} Bxc3+ {[%emt 0:00:30]} 11. Qxc3 {[%emt 0:00:30]} g5 {[%emt 0:00:30]} 12. Bg3 {[%emt 0:00:30]} Ne4 {[%emt 0:00:30]} 13. Qc2 {[%emt 0:00:30]} Nd7 {[%emt 0:00:30]} 14. f3 {[%emt 0:00:30]} Nexc5 {[%emt 0:00:30]} 15. Ne2 {[%emt 0:00:30]} Rc8 {[%emt 0:00:30]} 16. Qd1 {[%emt 0:00:30]} Bf5 {[%emt 0:00:30]} 17. Nd4 {[%emt 0:00:30]} Bg6 {[%emt 0:00:30]} 18. b4 {[%emt 0:00:30]} Ne6 {[%emt 0:00:30]} 19. Nxe6 {[%emt 0:00:30]} fxe6 {[%emt 0:00:30]} 20. Bd3 {[%emt 0:00:30]} Bxd3 {[%emt 0:00:30]} 21. Qxd3 {[%emt 0:00:30]} Qf6 {[%emt 0:00:30]} 22. O-O {[%emt 0:00:30]} Rc3 {[%emt 0:00:30]} 23. Qb5 {[%emt 0:00:30]} Nb6 {[%emt 0:00:30]} 24. Bd6 {[%emt 0:00:30]} Rd8 {[%emt 0:00:30]} 25. Bc5 {[%emt 0:00:30]} e5 {[%emt 0:00:30]} 26. Rfe1 {[%emt 0:00:30]} Qc6 {[%emt 0:00:30]} 27. a4 {[%emt 0:00:30]} Rd7 {[%emt 0:00:30]} 28. Qxc6 {[%emt 0:00:30]} bxc6 {[%emt 0:00:30]} 29. Bxb6 {[%emt 0:00:30]} axb6 {[%emt 0:00:30]} 30. Rec1 {[%emt 0:00:30]} Rxc1+ {[%emt 0:00:30]} 31. Rxc1 {[%emt 0:00:30]} Rc7 {[%emt 0:00:30]} 32. b5 {[%emt 0:00:30]} c5 {[%emt 0:00:30]} 33. a5 bxa5 {[%emt 0:00:30]} 34. b6 Rb7 {[%emt 0:00:30]} 35. Rxc5 {[%emt 0:01:30]} Rxb6 {[%emt 0:00:30]} 36. Rxa5 {[%emt 0:00:30]} Rd6 {[%emt 0:00:30]} 37. e4 {[%emt 0:00:30]} dxe4 {[%emt 0:00:30]} 38. fxe4 {[%emt 0:00:30]} Re6 {[%emt 0:00:30]} 39. Ra7 {[%emt 0:00:30]} h5 {[%emt 0:00:30]} 40. h3 {[%emt 0:00:30]} Rb6 {[%emt 0:00:30]} 41. Ra5 {[%emt 0:00:30]} Re6 {[%emt 0:00:30]} 42. Kf2 {[%emt 0:00:30]} Kg7 {[%emt 0:00:30]} 43. Ke3 {[%emt 0:00:30]} Kf6 {[%emt 0:00:30]} 44. Ra1 {[%emt 0:00:30]} Rb6 {[%emt 0:00:30]} 45. Rf1+ {[%emt 0:00:30]} Kg6 {[%emt 0:00:30]} 46. Rf5 {[%emt 0:00:30]} Rb3+ {[%emt 0:00:30]} 47. Kf2 {[%emt 0:00:30]} Rb2+ {[%emt 0:00:30]} 48. Kf3 {[%emt 0:00:30]} Rb3+ {[%emt 0:00:30]} 49. Kf2 {[%emt 0:00:30]} Rb2+ {[%emt 0:00:30]} 50. Kg1 {[%emt 0:00:30]} Rb1+ {[%emt 0:00:30]} 51. Kh2 {[%emt 0:00:30]} Rb5 {[%emt 0:00:30]} 52. h4 {[%emt 0:00:30]} gxh4 {[%emt 0:00:30]} 53. Kh3 {[%emt 0:00:30]} Rb2 {[%emt 0:00:30]} 54. Rxe5 {[%emt 0:00:30]} Re2 {[%emt 0:00:30]} 55. Re8 {[%emt 0:00:30]} Kf7 {[%emt 0:00:30]} 56. Rh8 {[%emt 0:00:30]} Rxe4 {[%emt 0:00:30]} 57. Rxh5 {[%emt 0:00:30]} Kg6 {[%emt 0:00:30]} 58. Rxh4 {[%emt 0:00:30]} Re3+ {[%emt 0:00:30]} 59. g3 {[%emt 0:00:30]} Ra3 {[%emt 0:00:30]} 60. Rb4 {[%emt 0:00:30]} Kg5 {[%emt 0:00:30]} 61. Rb5+ {[%emt 0:00:30]} Kg6 {[%emt 0:00:30]} 62. Kh4 {[%emt 0:00:30]} Ra4+ {[%emt 0:00:30]} 63. g4 {[%emt 0:00:30]} Ra6 {[%emt 0:00:30]} 64. Rc5 {[%emt 0:00:30]} Rb6 {[%emt 0:00:30]} 65. Ra5 {[%emt 0:00:30]} Rc6 {[%emt 0:00:30]} 66. Rg5+ {[%emt 0:00:30]} Kh6 {[%emt 0:00:30]} 67. Rg8 {[%emt 0:00:30]} Kh7 {[%emt 0:00:30]} 68. Rf8 {[%emt 0:00:30]} Kg6 {[%emt 0:00:30]} 69. Rg8+ {[%emt 0:00:30]} Kh7 {[%emt 0:00:30]} 70. Ra8 {[%emt 0:00:30]} Kg6 {[%emt 0:00:30]} 71. Ra4 {[%emt 0:00:30]} Rb6 {[%emt 0:00:30]} 72. Re4 {[%emt 0:00:30]} Ra6 {[%emt 0:00:30]} 73. g5 {[%emt 0:00:30]} Rb6 {[%emt 0:00:30]} 74. Kg4 {[%emt 0:00:30]} Ra6 {[%emt 0:00:30]} 75. Rf4 {[%emt 0:00:30]} Rb6 {[%emt 0:00:30]} 76. Rf6+ {[%emt 0:00:30]} Rxf6 {[%emt 0:00:30]} 77. gxf6 {[%emt 0:00:30]} Kxf6 {[%emt 0:00:30]} 1/2-1/2

[Event "PanAm Intercolleagiate-ch 2019"]
[Site "Charlotte"]
[Date "2019.12.30"]
[Round "6.6"]
[White "Lenderman, Aleksandr"]
[Black "Ipatov, Alexander"]
[Result "0-1"]
[ECO "E08"]
[WhiteElo "2638"]
[BlackElo "2631"]
[Annotator "ChessBase"]
[PlyCount "128"]
[EventDate "2019.12.27"]
[EventType "team-tourn"]
[EventCountry "USA"]
[SourceTitle "playchess.com"]
[Source "ChessBase"]
[SourceQuality "1"]
[TimeControl "5400+30"]

1. d4 {[%emt 1:30:30]} Nf6 {[%emt 1:30:30]} 2. c4 {[%emt 0:00:30]} e6 {[%emt 0:00:30]} 3. Nf3 {[%emt 0:00:30]} d5 {[%emt 0:00:30]} 4. g3 {[%emt 0:00:30]} Bb4+ {[%emt 0:00:30]} 5. Bd2 {[%emt 0:00:30]} Be7 {[%emt 0:00:30]} 6. Bg2 {[%emt 0:00:30]} O-O {[%emt 0:00:30]} 7. O-O {[%emt 0:00:30]} Nbd7 {[%emt 0:00:30]} 8. Qc2 {[%emt 0:00:30]} c6 {[%emt 0:00:30]} 9. Bf4 {[%emt 0:00:30]} Ne4 {[%emt 0:00:30]} 10. h4 {[%emt 0:00:30]} h6 {[%emt 0:00:30]} 11. Nc3 {[%emt 0:00:30]} g5 {[%emt 0:00:30]} 12. hxg5 {[%emt 0:00:30]} hxg5 {[%emt 0:00:30]} 13. Be3 {[%emt 0:00:30]} Nd6 {[%emt 0:00:30]} 14. cxd5 {[%emt 0:00:30]} exd5 15. Rad1 {[%emt 0:00:30]} Nb6 {[%emt 0:01:00]} 16. b3 {[%emt 0:00:30]} Bf5 {[%emt 0:00:30]} 17. Qc1 {[%emt 0:00:30]} f6 {[%emt 0:00:30]} 18. Nh2 {[%emt 0:00:30]} Qd7 {[%emt 0:00:30]} 19. f3 {[%emt 0:00:30]} Rae8 {[%emt 0:00:30]} 20. Bf2 {[%emt 0:00:30]} Bd8 {[%emt 0:00:30]} 21. Rfe1 {[%emt 0:00:30]} Qh7 {[%emt 0:00:30]} 22. g4 {[%emt 0:00:30]} Bg6 {[%emt 0:00:30]} 23. Bg3 {[%emt 0:00:30]} Nbc8 {[%emt 0:00:30]} 24. e3 {[%emt 0:00:30]} f5 {[%emt 0:00:30]} 25. Ne2 {[%emt 0:00:30]} Ba5 {[%emt 0:00:30]} 26. Nc3 {[%emt 0:00:30]} Bd8 {[%emt 0:00:30]} 27. Ne2 {[%emt 0:00:30]} fxg4 {[%emt 0:00:30]} 28. Nxg4 {[%emt 0:00:30]} Nf5 {[%emt 0:00:30]} 29. Be5 {[%emt 0:00:30]} Nh4 {[%emt 0:00:30]} 30. Rf1 {[%emt 0:00:30]} Ne7 {[%emt 0:00:30]} 31. Bh1 {[%emt 0:00:30]} Nef5 {[%emt 0:00:30]} 32. Rf2 {[%emt 0:00:30]} Nh6 {[%emt 0:00:30]} 33. Nxh6+ {[%emt 0:00:30]} Qxh6 {[%emt 0:00:30]} 34. Rdf1 {[%emt 0:00:30]} Rf7 {[%emt 0:00:30]} 35. Ng3 {[%emt 0:00:30]} Bd3 {[%emt 0:00:30]} 36. Rd1 {[%emt 0:00:30]} Bg6 {[%emt 0:00:30]} 37. Rdf1 {[%emt 0:00:30]} Rh7 {[%emt 0:00:30]} 38. Qd2 {[%emt 0:00:30]} Nf5 {[%emt 0:00:30]} 39. Rh2 {[%emt 0:00:30]} Qxh2+ {[%emt 0:00:30]} 40. Qxh2 {[%emt 0:00:30]} Rxh2 {[%emt 0:00:30]} 41. Kxh2 {[%emt 0:00:30]} Nxe3 {[%emt 0:00:30]} 42. Rf2 {[%emt 0:00:30]} Bb6 {[%emt 0:00:30]} 43. Re2 {[%emt 0:00:30]} Nc2 {[%emt 0:00:30]} 44. Rd2 {[%emt 0:00:30]} Kf7 {[%emt 0:00:30]} 45. Bg2 {[%emt 0:00:30]} Ba5 {[%emt 0:00:30]} 46. Rf2 {[%emt 0:00:30]} Be1 {[%emt 0:00:30]} 47. Rf1 {[%emt 0:00:30]} Bd2 {[%emt 0:00:30]} 48. Ne2 {[%emt 0:00:30]} Nxd4 {[%emt 0:00:30]} 49. Bxd4 {[%emt 0:00:30]} Rxe2 {[%emt 0:00:30]} 50. Rf2 {[%emt 0:00:30]} Bf4+ {[%emt 0:00:30]} 51. Kh1 {[%emt 0:00:30]} Rxf2 {[%emt 0:00:30]} 52. Bxf2 {[%emt 0:00:30]} b6 {[%emt 0:00:30]} 53. b4 {[%emt 0:00:30]} Ke6 {[%emt 0:00:30]} 54. Bf1 {[%emt 0:00:30]} Kd6 {[%emt 0:00:30]} 55. Kg2 {[%emt 0:00:30]} c5 {[%emt 0:00:30]} 56. bxc5+ {[%emt 0:00:30]} bxc5 {[%emt 0:00:30]} 57. Bb5 {[%emt 0:00:30]} d4 {[%emt 0:00:30]} 58. Bc4 {[%emt 0:00:30]} Bf5 {[%emt 0:00:30]} 59. a3 {[%emt 0:00:30]} Be6 {[%emt 0:00:30]} 60. Ba6 {[%emt 0:00:30]} Bd5 {[%emt 0:00:30]} 61. Bc8 {[%emt 0:00:30]} d3 {[%emt 0:00:30]} 62. Bf5 {[%emt 0:00:30]} d2 {[%emt 0:00:30]} 63. Bc2 {[%emt 0:00:30]} g4 {[%emt 0:00:30]} 64. Kf1 {[%emt 0:00:30]} Bxf3 {[%emt 0:00:30]} 0-1

[Event "PanAm Intercolleagiate-ch 2019"]
[Site "Charlotte"]
[Date "2019.12.30"]
[Round "6.7"]
[White "Theodorou, Nikolas"]
[Black "Nyzhnyk, Illya"]
[Result "1/2-1/2"]
[ECO "A53"]
[WhiteElo "2555"]
[BlackElo "2660"]
[Annotator "ChessBase"]
[PlyCount "80"]
[EventDate "2019.12.27"]
[EventType "team-tourn"]
[EventCountry "USA"]
[SourceTitle "playchess.com"]
[Source "ChessBase"]
[SourceQuality "1"]
[TimeControl "5400+30"]

1. d4 {[%emt 1:30:30]} d6 {[%emt 1:30:30]} 2. Nf3 {[%emt 0:00:30]} Bg4 {[%emt 0:00:30]} 3. c4 {[%emt 0:00:30]} Nd7 {[%emt 0:00:30]} 4. e3 {[%emt 0:00:30]} Ngf6 {[%emt 0:00:30]} 5. Be2 {[%emt 0:00:30]} c6 {[%emt 0:00:30]} 6. Nc3 {[%emt 0:00:30]} e5 {[%emt 0:00:30]} 7. h3 {[%emt 0:00:30]} Bh5 {[%emt 0:00:30]} 8. O-O {[%emt 0:00:30]} Be7 {[%emt 0:00:30]} 9. Nh4 {[%emt 0:00:30]} Bxe2 {[%emt 0:00:30]} 10. Qxe2 {[%emt 0:00:30]} O-O {[%emt 0:00:30]} 11. Nf5 {[%emt 0:00:30]} Re8 {[%emt 0:00:30]} 12. dxe5 {[%emt 0:00:30]} dxe5 {[%emt 0:00:30]} 13. Rd1 {[%emt 0:00:30]} g6 {[%emt 0:00:30]} 14. Nxe7+ {[%emt 0:00:30]} Qxe7 {[%emt 0:00:30]} 15. b3 {[%emt 0:00:30]} Rad8 {[%emt 0:00:30]} 16. Bb2 {[%emt 0:00:30]} Nf8 {[%emt 0:00:30]} 17. Qc2 {[%emt 0:00:30]} Ne6 {[%emt 0:00:30]} 18. Ne2 {[%emt 0:00:30]} Nd7 {[%emt 0:00:30]} 19. Rd2 {[%emt 0:00:30]} f6 {[%emt 0:00:30]} 20. Rad1 {[%emt 0:00:30]} Ndf8 {[%emt 0:00:30]} 21. Ng3 {[%emt 0:00:30]} Rxd2 {[%emt 0:00:30]} 22. Rxd2 {[%emt 0:00:30]} Rd8 {[%emt 0:00:30]} 23. Rxd8 {[%emt 0:00:30]} Nxd8 {[%emt 0:00:30]} 24. h4 {[%emt 0:00:30]} Nd7 {[%emt 0:00:30]} 25. Qd2 {[%emt 0:00:30]} Nc5 {[%emt 0:00:30]} 26. b4 {[%emt 0:00:30]} Qd7 {[%emt 0:00:30]} 27. Qe2 {[%emt 0:00:30]} Nce6 {[%emt 0:00:30]} 28. h5 {[%emt 0:00:30]} Nf7 {[%emt 0:00:30]} 29. Ne4 {[%emt 0:00:30]} Qe7 {[%emt 0:00:30]} 30. a3 {[%emt 0:00:30]} Nd6 {[%emt 0:00:30]} 31. Nd2 {[%emt 0:00:30]} b6 {[%emt 0:00:30]} 32. hxg6 {[%emt 0:00:30]} hxg6 {[%emt 0:00:30]} 33. f4 {[%emt 0:00:30]} exf4 {[%emt 0:00:30]} 34. exf4 {[%emt 0:00:30]} Kf7 {[%emt 0:00:30]} 35. g3 {[%emt 0:00:30]} Nf5 {[%emt 0:00:30]} 36. Ne4 {[%emt 0:00:30]} Nfd4 {[%emt 0:00:30]} 37. Bxd4 {[%emt 0:00:30]} Nxd4 {[%emt 0:00:30]} 38. Qd3 {[%emt 0:00:30]} c5 {[%emt 0:00:30]} 39. bxc5 {[%emt 0:00:30]} bxc5 {[%emt 0:00:30]} 40. Kf2 {[%emt 0:00:30]} f5 {[%emt 0:00:30]} 1/2-1/2

[Event "PanAm Intercolleagiate-ch 2019"]
[Site "Charlotte"]
[Date "2019.12.30"]
[Round "6.8"]
[White "Hakobyan, Aram"]
[Black "Bok, Benjamin"]
[Result "1/2-1/2"]
[ECO "D38"]
[WhiteElo "2576"]
[BlackElo "2636"]
[Annotator "ChessBase"]
[PlyCount "35"]
[EventDate "2019.12.27"]
[EventType "team-tourn"]
[EventCountry "USA"]
[SourceTitle "playchess.com"]
[Source "ChessBase"]
[SourceQuality "1"]
[TimeControl "5400+30"]

1. d4 {[%emt 1:30:30]} Nf6 {[%emt 1:30:30]} 2. c4 {[%emt 0:00:30]} e6 {[%emt 0:00:30]} 3. Nf3 {[%emt 0:00:30]} d5 {[%emt 0:00:30]} 4. Nc3 {[%emt 0:00:30]} Bb4 {[%emt 0:00:30]} 5. Bg5 {[%emt 0:00:30]} h6 {[%emt 0:00:30]} 6. Bxf6 {[%emt 0:00:30]} Qxf6 {[%emt 0:00:30]} 7. e3 {[%emt 0:00:30]} O-O {[%emt 0:00:30]} 8. Rc1 {[%emt 0:00:30]} dxc4 {[%emt 0:00:30]} 9. Bxc4 {[%emt 0:00:30]} c5 {[%emt 0:00:30]} 10. O-O {[%emt 0:00:30]} cxd4 {[%emt 0:00:30]} 11. Ne4 {[%emt 0:00:30]} Qe7 {[%emt 0:00:30]} 12. a3 {[%emt 0:00:30]} Ba5 {[%emt 0:00:30]} 13. Qxd4 {[%emt 0:00:30]} Rd8 {[%emt 0:00:30]} 14. Qe5 {[%emt 0:00:30]} Bb6 {[%emt 0:00:30]} 15. Rfd1 {[%emt 0:00:30]} Nc6 {[%emt 0:00:30]} 16. Qh5 {[%emt 0:00:30]} Bd7 {[%emt 0:00:30]} 17. g4 {[%emt 0:00:30]} Na5 {[%emt 0:00:30]} 18. Bb5 {[%emt 0:00:30]} 1/2-1/2

[Event "PanAm Intercolleagiate-ch 2019"]
[Site "Charlotte"]
[Date "2019.12.30"]
[Round "6.9"]
[White "Oparin, Grigoriy"]
[Black "Prohaszka, Peter"]
[Result "1/2-1/2"]
[ECO "A13"]
[WhiteElo "2650"]
[BlackElo "2595"]
[Annotator "ChessBase"]
[PlyCount "57"]
[EventDate "2019.12.27"]
[EventType "team-tourn"]
[EventCountry "USA"]
[SourceTitle "playchess.com"]
[Source "ChessBase"]
[SourceQuality "1"]
[TimeControl "5400+30"]

1. Nf3 {[%emt 0:00:00]} d5 {[%emt 0:00:00]} 2. c4 {[%emt 0:00:00]} e6 {[%emt 0:00:00]} 3. g3 {[%emt 0:00:00]} Nf6 {[%emt 0:00:00]} 4. Bg2 {[%emt 0:00:00]} dxc4 {[%emt 0:00:00]} 5. Qa4+ {[%emt 0:00:00]} Bd7 {[%emt 0:00:00]} 6. Qxc4 {[%emt 0:00:00]} c5 {[%emt 0:00:02]} 7. Ne5 {[%emt 0:00:11]} Qc8 {[%emt 0:00:07]} 8. Qd3 {[%emt 0:01:08]} Nc6 {[%emt 0:00:08]} 9. Nxd7 {[%emt 0:00:04]} Nxd7 {[%emt 0:00:05]} 10. b3 {[%emt 0:00:09]} Be7 {[%emt 0:00:09]} 11. Bb2 {[%emt 0:00:21]} O-O {[%emt 0:00:09]} 12. Nc3 {[%emt 0:00:43]} Rd8 {[%emt 0:00:33]} 13. Rd1 {[%emt 0:05:32]} Nf6 {[%emt 0:00:19]} 14. Qb1 {[%emt 0:00:31]} Qc7 {[%emt 0:02:44]} 15. O-O {[%emt 0:00:29]} Rac8 {[%emt 0:00:06]} 16. d3 {[%emt 0:05:28]} a6 {[%emt 0:03:52]} 17. Rd2 {[%emt 0:06:38]} b5 {[%emt 0:01:21]} 18. Rfd1 {[%emt 0:00:17]} Nd5 {[%emt 0:10:15]} 19. Ne4 {[%emt 0:06:31]} h6 {[%emt 0:03:24]} 20. e3 {[%emt 0:02:15]} Qb6 {[%emt 0:04:51]} 21. h4 {[%emt 0:11:31]} Na7 {[%emt 0:25:20]} 22. Rc1 {[%emt 0:06:43]} Bf8 {[%emt 0:10:00]} 23. Ba1 {[%emt 0:03:06]} b4 {[%emt 0:01:21]} 24. d4 {[%emt 0:03:39]} cxd4 {[%emt 0:02:36]} 25. Bxd4 {[%emt 0:00:06]} Qb8 {[%emt 0:00:07]} 26. Rdc2 {[%emt 0:10:35]} Rxc2 {[%emt 0:03:16]} 27. Qxc2 {[%emt 0:00:25]} Rc8 {[%emt 0:00:33]} 28. Qd2 {[%emt 0:00:13]} Nb5 {[%emt 0:00:45]} 29. Rc4 {[%emt 0:08:30]} 1/2-1/2

[Event "PanAm Intercolleagiate-ch 2019"]
[Site "Charlotte"]
[Date "2019.12.30"]
[Round "6.11"]
[White "Repka, Christopher"]
[Black "Krykun, Yuriy"]
[Result "1/2-1/2"]
[ECO "E18"]
[WhiteElo "2485"]
[BlackElo "2352"]
[Annotator "ChessBase"]
[PlyCount "89"]
[EventDate "2019.12.27"]
[EventType "team-tourn"]
[EventCountry "USA"]
[SourceTitle "playchess.com"]
[Source "ChessBase"]
[SourceQuality "1"]
[TimeControl "5400+30"]

1. d4 {[%emt 1:30:30]} Nf6 {[%emt 1:30:30]} 2. Nf3 {[%emt 0:00:30]} e6 {[%emt 0:00:30]} 3. c4 {[%emt 0:00:30]} b6 {[%emt 0:00:30]} 4. g3 {[%emt 0:00:30]} Bb7 {[%emt 0:00:30]} 5. Bg2 {[%emt 0:00:30]} Be7 {[%emt 0:00:30]} 6. O-O {[%emt 0:00:30]} O-O {[%emt 0:00:30]} 7. Nc3 {[%emt 0:00:30]} Ne4 {[%emt 0:00:30]} 8. Bd2 {[%emt 0:00:30]} d6 {[%emt 0:00:30]} 9. d5 {[%emt 0:00:30]} Nxd2 {[%emt 0:00:30]} 10. Qxd2 {[%emt 0:00:30]} e5 {[%emt 0:00:30]} 11. e4 {[%emt 0:00:30]} Nd7 {[%emt 0:00:30]} 12. Ne1 {[%emt 0:00:30]} Bg5 {[%emt 0:00:30]} 13. Qe2 {[%emt 0:00:30]} Bh6 {[%emt 0:00:30]} 14. Nd3 {[%emt 0:00:30]} Nc5 {[%emt 0:00:30]} 15. Nxc5 {[%emt 0:00:30]} bxc5 {[%emt 0:00:30]} 16. a4 {[%emt 0:00:30]} Bc8 {[%emt 0:00:30]} 17. a5 {[%emt 0:00:30]} Rb8 {[%emt 0:00:30]} 18. Rfb1 {[%emt 0:00:30]} Qg5 {[%emt 0:00:30]} 19. a6 {[%emt 0:00:30]} Bd7 {[%emt 0:00:30]} 20. Nb5 {[%emt 0:00:30]} Bxb5 {[%emt 0:00:30]} 21. cxb5 {[%emt 0:00:30]} Qd2 {[%emt 0:00:30]} 22. Bf1 {[%emt 0:00:30]} f5 {[%emt 0:00:30]} 23. exf5 {[%emt 0:00:30]} Rxf5 {[%emt 0:00:30]} 24. Rd1 {[%emt 0:00:30]} Qb4 {[%emt 0:00:30]} 25. Bh3 {[%emt 0:00:30]} Rf6 {[%emt 0:00:30]} 26. Bd7 {[%emt 0:00:30]} Rbf8 {[%emt 0:00:30]} 27. Rf1 {[%emt 0:00:30]} g6 {[%emt 0:00:30]} 28. Qc2 {[%emt 0:00:30]} Rf3 {[%emt 0:00:30]} 29. Ra4 {[%emt 0:00:30]} Qb3 {[%emt 0:00:30]} 30. Rc4 {[%emt 0:00:30]} Kg7 {[%emt 0:00:30]} 31. Kg2 {[%emt 0:00:30]} Qxc2 {[%emt 0:00:30]} 32. Rxc2 {[%emt 0:00:30]} Rb3 {[%emt 0:00:30]} 33. Re1 {[%emt 0:00:30]} Rf7 {[%emt 0:00:30]} 34. Bc6 {[%emt 0:00:30]} Rff3 {[%emt 0:00:30]} 35. Re4 {[%emt 0:00:30]} Rf7 {[%emt 0:00:30]} 36. Be8 {[%emt 0:00:30]} Rf8 {[%emt 0:00:30]} 37. Bc6 {[%emt 0:00:30]} Rf7 {[%emt 0:00:30]} 38. Re1 {[%emt 0:00:30]} Bg5 {[%emt 0:00:30]} 39. Be8 {[%emt 0:00:30]} Rf8 {[%emt 0:00:30]} 40. Bc6 {[%emt 0:00:30]} h5 {[%emt 0:00:30]} 41. Re4 {[%emt 0:00:30]} Bh6 {[%emt 0:00:30]} 42. h4 {[%emt 0:00:30]} Rf6 {[%emt 0:00:30]} 43. Rce2 {[%emt 0:00:30]} Bc1 {[%emt 0:00:30]} 44. Re1 {[%emt 0:00:30]} Rxb2 {[%emt 0:00:30]} 45. Rxc1 {[%emt 0:00:30]} 1/2-1/2

[Event "PanAm Intercolleagiate-ch 2019"]
[Site "Charlotte"]
[Date "2019.12.30"]
[Round "6.12"]
[White "Grabinsky, Aaron"]
[Black "Tokhirjonova, Gulrukhbegim"]
[Result "1-0"]
[ECO "A06"]
[WhiteElo "2349"]
[BlackElo "2421"]
[Annotator "NA"]
[PlyCount "163"]
[EventDate "2019.12.27"]
[EventType "team-tourn"]
[EventCountry "USA"]
[SourceTitle "playchess.com"]
[Source "ChessBase"]
[SourceQuality "1"]
[TimeControl "5400+30"]

1. b3 {[%emt 1:30:30]} d5 {[%emt 1:30:30]} 2. Bb2 {[%emt 0:00:30]} Nf6 {[%emt 0:00:30]} 3. e3 {[%emt 0:00:30]} Bf5 {[%emt 0:00:30]} 4. Nf3 {[%emt 0:00:30]} h6 {[%emt 0:00:30]} 5. d4 {[%emt 0:00:30]} e6 {[%emt 0:00:30]} 6. Be2 {[%emt 0:00:30]} Nbd7 {[%emt 0:00:30]} 7. O-O {[%emt 0:00:30]} Be7 {[%emt 0:00:30]} 8. c4 {[%emt 0:00:30]} O-O {[%emt 0:00:30]} 9. c5 {[%emt 0:00:30]} c6 {[%emt 0:00:30]} 10. Nc3 {[%emt 0:00:30]} b6 {[%emt 0:00:30]} 11. b4 {[%emt 0:00:30]} Qc7 {[%emt 0:00:30]} 12. Bd3 {[%emt 0:00:30]} Bxd3 {[%emt 0:00:30]} 13. Qxd3 {[%emt 0:00:30]} a5 {[%emt 0:00:30]} 14. a3 {[%emt 0:00:30]} Rfb8 {[%emt 0:00:30]} 15. Qc2 {[%emt 0:00:30]} Rb7 {[%emt 0:00:30]} 16. Rfb1 {[%emt 0:00:30]} Rab8 {[%emt 0:00:30]} 17. h3 {[%emt 0:00:30]} Nh7 {[%emt 0:00:30]} 18. Ne2 {[%emt 0:00:30]} Ng5 {[%emt 0:00:30]} 19. Nxg5 {[%emt 0:00:30]} hxg5 {[%emt 0:00:30]} 20. Bc3 {[%emt 0:00:30]} Qc8 {[%emt 0:00:30]} 21. Rc1 {[%emt 0:00:30]} Ra7 {[%emt 0:00:30]} 22. Be1 {[%emt 0:00:30]} Qa6 {[%emt 0:00:30]} 23. Qd1 {[%emt 0:00:30]} Rab7 {[%emt 0:00:30]} 24. Nc3 {[%emt 0:00:30]} bxc5 {[%emt 0:00:30]} 25. bxc5 {[%emt 0:00:30]} Bf6 {[%emt 0:00:30]} 26. g3 {[%emt 0:00:30]} Rb3 {[%emt 0:00:30]} 27. Qe2 {[%emt 0:00:30]} Qa7 {[%emt 0:00:30]} 28. Na4 {[%emt 0:00:30]} e5 {[%emt 0:00:30]} 29. Bc3 {[%emt 0:00:30]} Rxc3 {[%emt 0:00:30]} 30. Nxc3 {[%emt 0:00:30]} exd4 {[%emt 0:00:30]} 31. exd4 {[%emt 0:00:30]} Bxd4 {[%emt 0:00:30]} 32. Rab1 {[%emt 0:00:30]} Rxb1 {[%emt 0:00:30]} 33. Nxb1 {[%emt 0:00:30]} Nxc5 {[%emt 0:00:30]} 34. Nd2 {[%emt 0:00:30]} Qc7 {[%emt 0:00:30]} 35. Kg2 {[%emt 0:00:30]} Ne6 {[%emt 0:00:30]} 36. Qa6 {[%emt 0:00:30]} Nc5 {[%emt 0:00:30]} 37. Qe2 {[%emt 0:00:30]} Ne6 {[%emt 0:00:30]} 38. Nf3 {[%emt 0:00:30]} Bf6 {[%emt 0:00:30]} 39. Qa6 {[%emt 0:00:30]} c5 {[%emt 0:00:30]} 40. Qa8+ {[%emt 0:00:30]} Qd8 {[%emt 0:00:30]} 41. Qxd8+ {[%emt 0:00:30]} Bxd8 42. Rd1 {[%emt 0:00:30]} d4 {[%emt 0:01:00]} 43. Ne5 {[%emt 0:00:30]} Kf8 {[%emt 0:00:30]} 44. Kf3 {[%emt 0:00:30]} Ke7 {[%emt 0:00:30]} 45. Ke4 {[%emt 0:00:30]} Bc7 {[%emt 0:00:30]} 46. Nc4 {[%emt 0:00:30]} Kd7 {[%emt 0:00:30]} 47. Kd5 {[%emt 0:00:30]} g6 {[%emt 0:00:30]} 48. Rb1 {[%emt 0:00:30]} Bd8 {[%emt 0:00:30]} 49. Rb7+ {[%emt 0:00:30]} Bc7 {[%emt 0:00:30]} 50. Ra7 {[%emt 0:00:30]} Kc8 {[%emt 0:00:30]} 51. Kc6 {[%emt 0:00:30]} Nd8+ {[%emt 0:00:30]} 52. Kxc5 {[%emt 0:00:30]} Kb8 {[%emt 0:00:30]} 53. Ra6 {[%emt 0:00:30]} Ne6+ {[%emt 0:00:30]} 54. Kd5 {[%emt 0:00:30]} d3 {[%emt 0:00:30]} 55. Rc6 {[%emt 0:00:30]} Kb7 {[%emt 0:00:30]} 56. Nd6+ {[%emt 0:00:30]} Ka7 {[%emt 0:00:30]} 57. Nb5+ {[%emt 0:00:30]} Kb7 {[%emt 0:00:30]} 58. Rc3 {[%emt 0:00:30]} Bb6 {[%emt 0:00:30]} 59. Rxd3 {[%emt 0:00:30]} Ka6 {[%emt 0:00:30]} 60. Nd6 {[%emt 0:00:30]} Nc5 {[%emt 0:00:30]} 61. Rc3 {[%emt 0:00:30]} Na4 {[%emt 0:00:30]} 62. Rc6 {[%emt 0:00:30]} Ka7 {[%emt 0:00:30]} 63. f3 {[%emt 0:00:30]} Bf2 {[%emt 0:00:30]} 64. g4 {[%emt 0:00:30]} Nb6+ {[%emt 0:00:30]} 65. Ke4 {[%emt 0:00:30]} f6 {[%emt 0:00:30]} 66. Nb5+ {[%emt 0:00:30]} Ka6 {[%emt 0:00:30]} 67. Nc3 {[%emt 0:00:30]} Kb7 {[%emt 0:00:30]} 68. Rxf6 {[%emt 0:00:30]} Nc4 {[%emt 0:00:30]} 69. Rxg6 {[%emt 0:00:30]} Nxa3 {[%emt 0:00:30]} 70. Kd3 {[%emt 0:00:30]} Bh4 {[%emt 0:00:30]} 71. Re6 {[%emt 0:00:30]} Bg3 {[%emt 0:00:30]} 72. Re2 {[%emt 0:00:30]} Kc6 {[%emt 0:00:30]} 73. Ne4 {[%emt 0:00:30]} Bf4 {[%emt 0:00:30]} 74. Ra2 {[%emt 0:00:30]} Bc1 {[%emt 0:00:30]} 75. Nc3 {[%emt 0:00:30]} Nb5 {[%emt 0:00:30]} 76. Rxa5 {[%emt 0:00:30]} Nxc3 {[%emt 0:00:30]} 77. Kxc3 {[%emt 0:00:30]} Kd6 {[%emt 0:00:30]} 78. Kd4 {[%emt 0:00:30]} Ke6 {[%emt 0:00:30]} 79. Ra6+ {[%emt 0:00:30]} Kf7 {[%emt 0:00:30]} 80. Ke5 {[%emt 0:00:30]} Kg7 {[%emt 0:00:30]} 81. Kf5 {[%emt 0:00:30]} Kh7 {[%emt 0:00:30]} 82. Rg6 {[%emt 0:00:30]} 1-0